[Event "*** Monthly 3|2 Blitz Masters"]
[Site "Chess.com"]
[Date "2014.10.28"]
[Round "3"]
[White "KaydenTroffChess"]
[Black "GedoGluperd"]
[Result "1-0"]
[WhiteElo "2351"]
[BlackElo "2299"]
[TimeControl "180+2"]
[EndTime "12:27:46 PDT"]
[Termination "KaydenTroffChess won by resignation"]

1. d4 {[%clk 0:03:00]} 1... g6 {[%clk 0:02:57.4]} 2. c4 {[%clk 0:03:00.4]} 2...
Bg7 {[%clk 0:02:58.6]} 3. Nf3 {[%clk 0:03:01.6]} 3... d6 {[%clk 0:02:59.9]} 4.
g3 {[%clk 0:02:54.1]} 4... Nf6 {[%clk 0:02:59.8]} 5. Bg2 {[%clk 0:02:55.2]} 5...
O-O {[%clk 0:03:01.4]} 6. O-O {[%clk 0:02:56.5]} 6... c6 {[%clk 0:03:01.9]} 7.
b3 {[%clk 0:02:57.2]} 7... e5 {[%clk 0:02:57.5]} 8. dxe5 {[%clk 0:02:51.9]} 8...
dxe5 {[%clk 0:02:56.3]} 9. Bb2 {[%clk 0:02:48.9]} 9... e4 {[%clk 0:02:56.1]} 10.
Nfd2 {[%clk 0:02:44.8]} 10... e3 {[%clk 0:02:54.7]} 11. fxe3 {[%clk 0:02:44.3]}
11... Ng4 {[%clk 0:02:52.6]} 12. Bxg7 {[%clk 0:02:44.9]} 12... Kxg7 {[%clk
0:02:53.3]} 13. Qc2 {[%clk 0:02:34.1]} 13... Qg5 {[%clk 0:02:36.9]} 14. Qc3+
{[%clk 0:02:30.7]} 14... f6 {[%clk 0:02:34.1]} 15. Rf4 {[%clk 0:02:28.7]} 15...
Na6 {[%clk 0:02:26.1]} 16. Ne4 {[%clk 0:02:25.2]} 16... Qe5 {[%clk 0:02:26.4]}
17. Qxe5 {[%clk 0:02:21.4]} 17... fxe5 {[%clk 0:02:27.4]} 18. Rxf8 {[%clk
0:02:21.8]} 18... Kxf8 {[%clk 0:02:28.5]} 19. Nbc3 {[%clk 0:02:15.4]} 19... Nxe3
{[%clk 0:02:28.7]} 20. Kf2 {[%clk 0:02:06.3]} 20... Ng4+ {[%clk 0:02:27]} 21.
Kg1 {[%clk 0:02:07.4]} 21... Ne3 {[%clk 0:02:26.7]} 22. h3 {[%clk 0:02:08.4]}
22... Bf5 {[%clk 0:02:26.5]} 23. g4 {[%clk 0:02:04.2]} 23... Nxg2 {[%clk
0:02:15.1]} 24. gxf5 {[%clk 0:01:54.5]} 24... gxf5 {[%clk 0:02:13.7]} 25. Kxg2
{[%clk 0:01:53.3]} 25... fxe4 {[%clk 0:02:14.6]} 26. Rf1+ {[%clk 0:01:54]} 26...
Ke7 {[%clk 0:02:14.7]} 27. Nxe4 {[%clk 0:01:53.5]} 27... Nb4 {[%clk 0:02:12.4]}
28. Rf5 {[%clk 0:01:53.5]} 28... Ke6 {[%clk 0:02:08.2]} 29. Rf6+ {[%clk
0:01:52.7]} 29... Ke7 {[%clk 0:02:09.5]} 30. Rf5 {[%clk 0:01:49.2]} 30... Ke6
{[%clk 0:02:08.4]} 31. Rh5 {[%clk 0:01:50.4]} 31... Rg8+ {[%clk 0:02:08.1]} 32.
Kf3 {[%clk 0:01:47.8]} 32... Rg7 {[%clk 0:02:02]} 33. Rxh7 {[%clk 0:01:23.6]}
33... Rxh7 {[%clk 0:01:44.3]} 34. Ng5+ {[%clk 0:01:23.4]} 34... Kf5 {[%clk
0:01:45.7]} 35. Nxh7 {[%clk 0:01:24.4]} 35... Nxa2 {[%clk 0:01:46.3]} 36. e4+
{[%clk 0:01:24.6]} 36... Kg6 {[%clk 0:01:41.8]} 37. Nf8+ {[%clk 0:01:25.4]}
37... Kf6 {[%clk 0:01:41.3]} 38. Nd7+ {[%clk 0:01:26.3]} 38... Ke6 {[%clk
0:01:34.4]} 39. Nc5+ {[%clk 0:01:26.7]} 39... Kf6 {[%clk 0:01:33]} 40. Nxb7
{[%clk 0:01:27.3]} 40... Nc1 {[%clk 0:01:34]} 41. Na5 {[%clk 0:01:18.4]} 41...
c5 {[%clk 0:01:33.8]} 42. Ke3 {[%clk 0:01:19.6]} 42... Kg5 {[%clk 0:01:33.4]}
43. Kd2 {[%clk 0:01:20.4]} 43... Na2 {[%clk 0:01:34.5]} 44. Nb7 {[%clk
0:01:21.6]} 44... Kh4 {[%clk 0:01:30.8]} 45. Nxc5 {[%clk 0:01:22]} 45... Nb4
{[%clk 0:01:31.4]} 46. Nd3 {[%clk 0:01:20]} 46... Nc6 {[%clk 0:01:32.1]} 47. b4
{[%clk 0:01:14.3]} 47... Kxh3 {[%clk 0:01:33.5]} 48. b5 {[%clk 0:01:15.1]} 48...
Na5 {[%clk 0:01:35.1]} 49. c5 {[%clk 0:01:11.3]} 49... Kg3 {[%clk 0:01:33.9]}
50. c6 {[%clk 0:01:11.6]} 50... Nc4+ {[%clk 0:01:31.9]} 51. Kc3 {[%clk
0:01:10.3]} 51... Nb6 {[%clk 0:01:33.5]} 52. Nxe5 {[%clk 0:01:10.7]} 52... Kf4
{[%clk 0:01:34.2]} 53. Kd4 {[%clk 0:01:11.4]} 53... Nc8 {[%clk 0:01:30.2]} 54.
Nc4 {[%clk 0:01:10.7]} 1-0

[Event "*** Monthly 3|2 Blitz Masters"]
[Site "Chess.com"]
[Date "2014.10.28"]
[Round "3"]
[White "gumersindo"]
[Black "chesstatour"]
[Result "1-0"]
[WhiteElo "2137"]
[BlackElo "1804"]
[TimeControl "180+2"]
[EndTime "12:28:24 PDT"]
[Termination "gumersindo won on time"]

1. d4 {[%clk 0:03:00]} 1... Nf6 {[%clk 0:02:57.4]} 2. c4 {[%clk 0:02:59.6]} 2...
e5 {[%clk 0:02:56.4]} 3. dxe5 {[%clk 0:03:00.5]} 3... Ng4 {[%clk 0:02:56.5]} 4.
Bf4 {[%clk 0:03:01.5]} 4... Nc6 {[%clk 0:02:55.5]} 5. Nf3 {[%clk 0:03:02.2]}
5... Bb4+ {[%clk 0:02:51.4]} 6. Nbd2 {[%clk 0:02:58.4]} 6... Qe7 {[%clk
0:02:50.9]} 7. e3 {[%clk 0:02:58.4]} 7... Ncxe5 {[%clk 0:02:48.8]} 8. Nxe5
{[%clk 0:02:58.9]} 8... Nxe5 {[%clk 0:02:49.5]} 9. Be2 {[%clk 0:03:00.4]} 9...
d6 {[%clk 0:02:47.1]} 10. O-O {[%clk 0:03:00.6]} 10... Bxd2 {[%clk 0:02:46]} 11.
Qxd2 {[%clk 0:03:01.1]} 11... O-O {[%clk 0:02:47.2]} 12. Rfc1 {[%clk 0:02:57.5]}
12... Ng6 {[%clk 0:02:44.6]} 13. Bg3 {[%clk 0:02:58.1]} 13... Rd8 {[%clk
0:02:11.8]} 14. b4 {[%clk 0:02:54]} 14... a5 {[%clk 0:02:07.5]} 15. a3 {[%clk
0:02:45.7]} 15... Bf5 {[%clk 0:01:48.5]} 16. Bf3 {[%clk 0:02:38.9]} 16... c6
{[%clk 0:01:25.2]} 17. Rd1 {[%clk 0:02:31.3]} 17... Ne5 {[%clk 0:01:19]} 18. Be2
{[%clk 0:02:26.5]} 18... Be6 {[%clk 0:01:16]} 19. Qc3 {[%clk 0:02:23.7]} 19...
axb4 {[%clk 0:01:15.2]} 20. axb4 {[%clk 0:02:24.3]} 20... Rxa1 {[%clk
0:01:15.8]} 21. Rxa1 {[%clk 0:02:25]} 21... Qf6 {[%clk 0:00:35]} 22. Qd4 {[%clk
0:02:21.8]} 22... Nd7 {[%clk 0:00:16.4]} 23. Bxd6 {[%clk 0:02:17.9]} 23... Qxd4
{[%clk 0:00:12]} 24. exd4 {[%clk 0:02:18.4]} 24... Nf6 {[%clk 0:00:12.4]} 25. c5
{[%clk 0:02:14.2]} 25... Ne8 {[%clk 0:00:11.9]} 26. Be7 {[%clk 0:01:52.6]} 26...
Rd7 {[%clk 0:00:11.7]} 27. Bg5 {[%clk 0:01:48.8]} 27... f6 {[%clk 0:00:11.1]}
28. Be3 {[%clk 0:01:49.1]} 28... f5 {[%clk 0:00:10.5]} 29. g3 {[%clk 0:01:49]}
29... Nf6 {[%clk 0:00:10.4]} 30. b5 {[%clk 0:01:48.2]} 30... Nd5 {[%clk
0:00:10.4]} 31. bxc6 {[%clk 0:01:48.6]} 31... bxc6 {[%clk 0:00:11.4]} 32. Ra6
{[%clk 0:01:49]} 32... Nb4 {[%clk 0:00:08]} 33. Rb6 {[%clk 0:01:47.9]} 33... Nc2
{[%clk 0:00:08.7]} 34. Rxc6 {[%clk 0:01:47.9]} 34... Bd5 {[%clk 0:00:09.1]} 35.
Rd6 {[%clk 0:01:47.7]} 35... Rxd6 {[%clk 0:00:08.9]} 36. cxd6 {[%clk 0:01:48.5]}
36... Kf7 {[%clk 0:00:08.3]} 37. Bd3 {[%clk 0:01:49.2]} 37... Ne1 {[%clk
0:00:07.5]} 38. Bxf5 {[%clk 0:01:48]} 38... Nf3+ {[%clk 0:00:08.4]} 39. Kf1
{[%clk 0:01:48.8]} 39... Nxh2+ {[%clk 0:00:08.7]} 40. Ke2 {[%clk 0:01:50]} 40...
Bf3+ {[%clk 0:00:07.8]} 41. Kd3 {[%clk 0:01:50.5]} 41... Ng4 {[%clk 0:00:09]}
42. d7 {[%clk 0:01:50.2]} 42... Ke7 {[%clk 0:00:06.8]} 43. Bg5+ {[%clk
0:01:50.7]} 43... Nf6 {[%clk 0:00:07.5]} 44. Bxf6+ {[%clk 0:01:51.4]} 44... gxf6
{[%clk 0:00:06.6]} 45. Ke3 {[%clk 0:01:52.9]} 45... Bc6 {[%clk 0:00:06.2]} 46.
Kf4 {[%clk 0:01:54]} 46... h6 {[%clk 0:00:06.6]} 47. Ke3 {[%clk 0:01:51.9]}
47... Bb5 {[%clk 0:00:06.9]} 48. d5 {[%clk 0:01:52.4]} 48... Bc4 {[%clk
0:00:05]} 49. Kd4 {[%clk 0:01:50.5]} 49... Bb3 {[%clk 0:00:04.8]} 50. Kc5 {[%clk
0:01:47.8]} 50... Ba4 {[%clk 0:00:04.6]} 51. Kb6 {[%clk 0:01:45.7]} 51... Bxd7
{[%clk 0:00:02.3]} 52. Bxd7 {[%clk 0:01:46.6]} 52... Kxd7 {[%clk 0:00:03.4]} 53.
Kc5 {[%clk 0:01:48.2]} 53... f5 {[%clk 0:00:04.9]} 54. d6 {[%clk 0:01:48.5]} 1-0

[Event "*** Monthly 3|2 Blitz Masters"]
[Site "Chess.com"]
[Date "2014.10.28"]
[Round "3"]
[White "brauliocuarta"]
[Black "DanielRensch"]
[Result "1-0"]
[WhiteElo "1971"]
[BlackElo "2332"]
[TimeControl "180+2"]
[EndTime "12:28:24 PDT"]
[Termination "brauliocuarta won by resignation"]

1. d4 {[%clk 0:02:59.7]} 1... Nf6 {[%clk 0:02:45.5]} 2. c4 {[%clk 0:02:58.9]}
2... e6 {[%clk 0:02:45.7]} 3. Nc3 {[%clk 0:02:58.1]} 3... Bb4 {[%clk 0:02:46.2]}
4. e3 {[%clk 0:02:57.8]} 4... O-O {[%clk 0:02:46.9]} 5. Ne2 {[%clk 0:02:56.5]}
5... c5 {[%clk 0:02:47.5]} 6. a3 {[%clk 0:02:52.1]} 6... cxd4 {[%clk 0:02:46.6]}
7. exd4 {[%clk 0:02:52.4]} 7... Be7 {[%clk 0:02:47.2]} 8. d5 {[%clk 0:02:47.5]}
8... exd5 {[%clk 0:02:47.6]} 9. cxd5 {[%clk 0:02:47.9]} 9... Re8 {[%clk
0:02:48.9]} 10. g3 {[%clk 0:02:38.8]} 10... b6 {[%clk 0:02:46.6]} 11. Bg2 {[%clk
0:02:40]} 11... Bf8 {[%clk 0:02:46.4]} 12. O-O {[%clk 0:02:40.9]} 12... d6
{[%clk 0:02:46.4]} 13. Bf4 {[%clk 0:02:23.5]} 13... Nbd7 {[%clk 0:02:41.5]} 14.
Nb5 {[%clk 0:02:16.2]} 14... Ne5 {[%clk 0:02:41.7]} 15. Rc1 {[%clk 0:02:14.3]}
15... Bg4 {[%clk 0:02:41.1]} 16. f3 {[%clk 0:02:12.2]} 16... Bd7 {[%clk
0:02:38.9]} 17. Nc7 {[%clk 0:02:10.8]} 17... b5 {[%clk 0:02:28.4]} 18. Nxe8
{[%clk 0:02:04.9]} 18... Bxe8 {[%clk 0:02:23.5]} 19. Nd4 {[%clk 0:01:52.2]}
19... Qb6 {[%clk 0:02:23.4]} 20. Kh1 {[%clk 0:01:50.3]} 20... Nfd7 {[%clk
0:02:23.8]} 21. Nc6 {[%clk 0:01:48.5]} 21... h6 {[%clk 0:02:19.3]} 22. Bxe5
{[%clk 0:01:44.3]} 22... dxe5 {[%clk 0:02:19.3]} 23. f4 {[%clk 0:01:44.8]} 23...
exf4 {[%clk 0:02:19.5]} 24. Rxf4 {[%clk 0:01:44]} 24... Bd6 {[%clk 0:02:20.5]}
25. Rf1 {[%clk 0:01:41.4]} 25... Nf8 {[%clk 0:02:05.3]} 26. Qe2 {[%clk
0:01:39.1]} 26... Bd7 {[%clk 0:02:04.2]} 27. Ne7+ {[%clk 0:01:34.2]} 27... Kh8
{[%clk 0:01:46]} 28. Rxf7 {[%clk 0:01:34]} 28... Re8 {[%clk 0:01:46]} 29. Rxf8+
{[%clk 0:01:25.1]} 29... Rxf8 {[%clk 0:01:46.7]} 30. Ng6+ {[%clk 0:01:26.1]}
30... Kg8 {[%clk 0:01:48.6]} 31. Nxf8 {[%clk 0:01:26.2]} 31... Bxf8 {[%clk
0:01:49.8]} 32. Rf1 {[%clk 0:01:11.2]} 32... Qd6 {[%clk 0:01:36.8]} 33. Qf3
{[%clk 0:01:05.1]} 33... Be7 {[%clk 0:01:37.8]} 34. Qf7+ {[%clk 0:01:02.8]}
34... Kh8 {[%clk 0:01:38.5]} 35. Be4 {[%clk 0:01:03.2]} 35... Bf6 {[%clk
0:01:38.9]} 36. Qg6 {[%clk 0:01:00.7]} 36... Kg8 {[%clk 0:01:39.3]} 37. Qh7+
{[%clk 0:00:57.6]} 37... Kf8 {[%clk 0:01:38.6]} 38. Qh8+ {[%clk 0:00:47.5]}
38... Ke7 {[%clk 0:01:25.1]} 39. Re1 {[%clk 0:00:46.7]} 39... Qe5 {[%clk
0:01:23.1]} 40. d6+ {[%clk 0:00:41.7]} 40... Kf7 {[%clk 0:01:16.9]} 41. Bg6+
{[%clk 0:00:39.9]} 41... Kxg6 {[%clk 0:01:16.1]} 42. Rxe5 {[%clk 0:00:41.8]}
42... Bxe5 {[%clk 0:01:17.7]} 43. Kg2 {[%clk 0:00:37.3]} 43... Bxd6 {[%clk
0:01:16.1]} 44. Qd8 {[%clk 0:00:35]} 44... Bc6+ {[%clk 0:01:17.3]} 45. Kf1
{[%clk 0:00:34]} 45... Be5 {[%clk 0:01:14]} 46. Qe7 {[%clk 0:00:32.1]} 46... Bf6
{[%clk 0:01:12.5]} 47. Qxa7 {[%clk 0:00:32.3]} 47... Bd5 {[%clk 0:01:10.3]} 48.
Qc5 {[%clk 0:00:30.8]} 48... Bc4+ {[%clk 0:01:10.8]} 49. Kf2 {[%clk 0:00:32.3]}
49... Bxb2 {[%clk 0:01:09.6]} 50. a4 {[%clk 0:00:31.5]} 1-0

[Event "*** Monthly 3|2 Blitz Masters"]
[Site "Chess.com"]
[Date "2014.10.28"]
[Round "3"]
[White "mat_kolosowski"]
[Black "David_Klein"]
[Result "0-1"]
[WhiteElo "2342"]
[BlackElo "2356"]
[TimeControl "180+2"]
[EndTime "12:28:41 PDT"]
[Termination "David_Klein won by resignation"]

1. d4 {[%clk 0:02:46.5]} 1... Nf6 {[%clk 0:02:57.7]} 2. c4 {[%clk 0:02:47.4]}
2... e6 {[%clk 0:02:58.9]} 3. g3 {[%clk 0:02:48.7]} 3... d5 {[%clk 0:02:59.7]}
4. Nf3 {[%clk 0:02:49.9]} 4... Bb4+ {[%clk 0:03:01.1]} 5. Bd2 {[%clk 0:02:50.1]}
5... Be7 {[%clk 0:03:02.5]} 6. Bg2 {[%clk 0:02:51.2]} 6... Nbd7 {[%clk
0:03:04.1]} 7. Qc2 {[%clk 0:02:50.8]} 7... c6 {[%clk 0:03:05.3]} 8. O-O {[%clk
0:02:51.5]} 8... b6 {[%clk 0:03:06.6]} 9. Rd1 {[%clk 0:02:52.2]} 9... Ba6 {[%clk
0:03:07.5]} 10. Ne5 {[%clk 0:02:53.2]} 10... Rc8 {[%clk 0:02:53.8]} 11. Qa4
{[%clk 0:02:46.3]} 11... Bxc4 {[%clk 0:02:53.9]} 12. Nxc6 {[%clk 0:02:33.9]}
12... b5 {[%clk 0:02:50.7]} 13. Qa6 {[%clk 0:02:09.5]} 13... Nb8 {[%clk
0:02:43.1]} 14. Nxb8 {[%clk 0:02:09.4]} 14... Rxb8 {[%clk 0:02:45]} 15. e3
{[%clk 0:01:47.8]} 15... Qd7 {[%clk 0:02:11.6]} 16. b3 {[%clk 0:01:40.3]} 16...
Be2 {[%clk 0:02:11.5]} 17. Re1 {[%clk 0:01:38.4]} 17... Bd3 {[%clk 0:02:12.3]}
18. Rc1 {[%clk 0:01:29.3]} 18... O-O {[%clk 0:02:04.8]} 19. Nc3 {[%clk
0:01:04.3]} 19... Rb6 {[%clk 0:01:54.6]} 20. Qa5 {[%clk 0:01:04.6]} 20... Qb7
{[%clk 0:01:40.9]} 21. Nd1 {[%clk 0:01:00.1]} 21... Ne4 {[%clk 0:01:37.2]} 22.
Be1 {[%clk 0:00:55.8]} 22... Bd6 {[%clk 0:01:24.8]} 23. Bxe4 {[%clk 0:00:42.8]}
23... Bxe4 {[%clk 0:01:20.9]} 24. Qc3 {[%clk 0:00:39.9]} 24... b4 {[%clk
0:01:18.8]} 25. Qd2 {[%clk 0:00:38.6]} 25... Qe7 {[%clk 0:01:07.5]} 26. Nb2
{[%clk 0:00:36.9]} 26... Bf3 {[%clk 0:00:59.1]} 27. Qd3 {[%clk 0:00:32.5]} 27...
h5 {[%clk 0:00:57.6]} 28. Na4 {[%clk 0:00:30.5]} 28... Rbb8 {[%clk 0:00:55.1]}
29. Nc5 {[%clk 0:00:31.4]} 29... h4 {[%clk 0:00:51]} 30. Rc2 {[%clk 0:00:21.8]}
30... Bxc5 {[%clk 0:00:38.5]} 31. Rxc5 {[%clk 0:00:21.8]} 31... Qg5 {[%clk
0:00:36]} 32. Rac1 {[%clk 0:00:21.3]} 32... Be4 {[%clk 0:00:25]} 33. Qe2 {[%clk
0:00:21.5]} 33... hxg3 {[%clk 0:00:23.7]} 34. hxg3 {[%clk 0:00:19.4]} 34... Qf5
{[%clk 0:00:23.7]} 35. f4 {[%clk 0:00:19.8]} 35... Qh3 {[%clk 0:00:23.9]} 36.
Qh2 {[%clk 0:00:20.2]} 36... Qg4 {[%clk 0:00:24.9]} 37. R1c2 {[%clk 0:00:19.3]}
37... Bxc2 {[%clk 0:00:21.9]} 38. Rxc2 {[%clk 0:00:20.2]} 38... Rfc8 {[%clk
0:00:22.6]} 0-1

[Event "*** Monthly 3|2 Blitz Masters"]
[Site "Chess.com"]
[Date "2014.10.28"]
[Round "3"]
[White "vovkcoach"]
[Black "GMG"]
[Result "0-1"]
[WhiteElo "2509"]
[BlackElo "2349"]
[TimeControl "180+2"]
[EndTime "12:28:56 PDT"]
[Termination "GMG won by resignation"]

1. e4 {[%clk 0:03:00]} 1... c5 {[%clk 0:02:59.3]} 2. Nf3 {[%clk 0:03:00.8]} 2...
e6 {[%clk 0:03:00.9]} 3. g3 {[%clk 0:03:00.3]} 3... Nc6 {[%clk 0:03:01.3]} 4.
Bg2 {[%clk 0:03:00.8]} 4... g6 {[%clk 0:03:02.3]} 5. O-O {[%clk 0:03:00.2]} 5...
Bg7 {[%clk 0:03:03.8]} 6. c3 {[%clk 0:03:00.6]} 6... e5 {[%clk 0:03:05.4]} 7.
Na3 {[%clk 0:02:54.6]} 7... Nge7 {[%clk 0:03:06.5]} 8. d4 {[%clk 0:02:54.2]}
8... cxd4 {[%clk 0:03:07.1]} 9. cxd4 {[%clk 0:02:56.1]} 9... Nxd4 {[%clk
0:03:07]} 10. Nxd4 {[%clk 0:02:56.2]} 10... exd4 {[%clk 0:03:08.2]} 11. Nb5
{[%clk 0:02:58.1]} 11... O-O {[%clk 0:03:09.1]} 12. Bf4 {[%clk 0:02:57.4]} 12...
Nc6 {[%clk 0:03:07.9]} 13. Bd6 {[%clk 0:02:56.4]} 13... Re8 {[%clk 0:03:00.7]}
14. Nc7 {[%clk 0:02:55.8]} 14... Re6 {[%clk 0:03:01.8]} 15. Nxe6 {[%clk
0:02:56]} 15... dxe6 {[%clk 0:03:02.4]} 16. Ba3 {[%clk 0:02:28.4]} 16... e5
{[%clk 0:02:58.5]} 17. Qb3 {[%clk 0:02:23.7]} 17... Qc7 {[%clk 0:02:55.6]} 18.
Rfc1 {[%clk 0:02:14.2]} 18... Be6 {[%clk 0:02:55.1]} 19. Qa4 {[%clk 0:02:11]}
19... Bh6 {[%clk 0:02:48.4]} 20. Rc2 {[%clk 0:01:58.4]} 20... Qd7 {[%clk
0:02:49.4]} 21. Rd1 {[%clk 0:01:47.8]} 21... Bg4 {[%clk 0:02:48.3]} 22. f3
{[%clk 0:01:47.2]} 22... Be3+ {[%clk 0:02:47.9]} 23. Kh1 {[%clk 0:01:47.5]}
23... Bh3 {[%clk 0:02:43.7]} 24. Qb3 {[%clk 0:01:47.3]} 24... Bxg2+ {[%clk
0:02:42.1]} 25. Kxg2 {[%clk 0:01:49.2]} 25... Qc7 {[%clk 0:02:37]} 26. Bb4
{[%clk 0:01:44]} 26... Kg7 {[%clk 0:02:33.7]} 27. Bd2 {[%clk 0:01:41.5]} 27...
Bxd2 {[%clk 0:02:34.8]} 28. Rdxd2 {[%clk 0:01:43.4]} 28... Rf8 {[%clk 0:02:36]}
29. Qb5 {[%clk 0:01:37.2]} 29... f5 {[%clk 0:02:35]} 30. exf5 {[%clk 0:01:35.4]}
30... Rxf5 {[%clk 0:02:35.4]} 31. Qd3 {[%clk 0:01:30.1]} 31... Qf7 {[%clk
0:02:33.4]} 32. a3 {[%clk 0:01:29.9]} 32... h5 {[%clk 0:02:32.5]} 33. h4 {[%clk
0:01:29.4]} 33... a5 {[%clk 0:02:23.3]} 34. Qe4 {[%clk 0:01:25.2]} 34... Qb3
{[%clk 0:02:23.9]} 35. Qd3 {[%clk 0:01:18.8]} 35... Qf7 {[%clk 0:02:23.7]} 36.
Rc5 {[%clk 0:01:18.2]} 36... Qe7 {[%clk 0:02:15.9]} 37. Rb5 {[%clk 0:01:16.1]}
37... e4 {[%clk 0:02:13.3]} 38. fxe4 {[%clk 0:01:00.2]} 38... Rxb5 {[%clk
0:02:13.9]} 39. Qxb5 {[%clk 0:01:02.1]} 39... Qxe4+ {[%clk 0:02:15.4]} 40. Kh2
{[%clk 0:00:40.1]} 40... Ne5 {[%clk 0:02:16.1]} 41. Re2 {[%clk 0:00:31.8]} 41...
Ng4+ {[%clk 0:01:26.6]} 42. Kg1 {[%clk 0:00:32.2]} 42... Qb1+ {[%clk 0:01:10.9]}
43. Kg2 {[%clk 0:00:32.3]} 43... Ne3+ {[%clk 0:01:12.1]} 44. Kh2 {[%clk
0:00:26.5]} 44... Qe4 {[%clk 0:01:06.8]} 45. Qd7+ {[%clk 0:00:20.7]} 45... Kh6
{[%clk 0:01:07.3]} 46. Kg1 {[%clk 0:00:17.5]} 46... Qb1+ {[%clk 0:01:07.2]} 47.
Kh2 {[%clk 0:00:18.5]} 47... Qf1 {[%clk 0:01:05.7]} 48. Rxe3 {[%clk 0:00:05]}
48... Qf2+ {[%clk 0:01:06.5]} 49. Kh3 {[%clk 0:00:05.7]} 49... dxe3 {[%clk
0:01:07.7]} 50. Qd4 {[%clk 0:00:05.5]} 50... Qf1+ {[%clk 0:01:05.7]} 51. Kh2
{[%clk 0:00:06.4]} 51... Qe2+ {[%clk 0:01:05.1]} 52. Kh1 {[%clk 0:00:07.1]}
52... Qe1+ {[%clk 0:01:06]} 53. Kh2 {[%clk 0:00:08]} 53... Qd2+ {[%clk
0:01:07.3]} 0-1

[Event "*** Monthly 3|2 Blitz Masters"]
[Site "Chess.com"]
[Date "2014.10.28"]
[Round "3"]
[White "XeresLt"]
[Black "lorcho"]
[Result "0-1"]
[WhiteElo "2279"]
[BlackElo "2515"]
[TimeControl "180+2"]
[EndTime "12:29:11 PDT"]
[Termination "lorcho won by checkmate"]

1. e4 {[%clk 0:03:00]} 1... e6 {[%clk 0:02:56.8]} 2. d4 {[%clk 0:03:00.5]} 2...
d5 {[%clk 0:02:56.1]} 3. Nc3 {[%clk 0:03:01.4]} 3... Nf6 {[%clk 0:02:57]} 4. e5
{[%clk 0:03:02]} 4... Nfd7 {[%clk 0:02:58.2]} 5. f4 {[%clk 0:03:02.5]} 5... c5
{[%clk 0:03:00.1]} 6. Nf3 {[%clk 0:03:03.3]} 6... Nc6 {[%clk 0:03:02]} 7. Be3
{[%clk 0:03:04.3]} 7... a6 {[%clk 0:03:03.4]} 8. Qd2 {[%clk 0:03:04.3]} 8...
cxd4 {[%clk 0:03:04.7]} 9. Nxd4 {[%clk 0:03:04.8]} 9... Bc5 {[%clk 0:03:05.1]}
10. Nce2 {[%clk 0:03:03.1]} 10... O-O {[%clk 0:02:58.6]} 11. O-O-O {[%clk
0:02:58.3]} 11... Qb6 {[%clk 0:02:39.7]} 12. c3 {[%clk 0:02:57.4]} 12... f6
{[%clk 0:02:39.2]} 13. b4 {[%clk 0:02:25.3]} 13... Nxb4 {[%clk 0:02:29.4]} 14.
cxb4 {[%clk 0:02:25.7]} 14... Bxb4 {[%clk 0:02:31.3]} 15. Qb2 {[%clk 0:02:26]}
15... Qa5 {[%clk 0:02:15.8]} 16. Nc2 {[%clk 0:02:22.6]} 16... Bc5 {[%clk
0:02:11.9]} 17. exf6 {[%clk 0:02:12.9]} 17... Bxe3+ {[%clk 0:02:08.2]} 18. Nxe3
{[%clk 0:02:13.3]} 18... Nxf6 {[%clk 0:02:10.1]} 19. Nd4 {[%clk 0:02:10.7]}
19... Bd7 {[%clk 0:02:05.3]} 20. Kb1 {[%clk 0:02:10.9]} 20... Ne4 {[%clk
0:02:04.5]} 21. Nb3 {[%clk 0:01:45.2]} 21... Qb4 {[%clk 0:01:43.1]} 22. Nc2
{[%clk 0:01:32.6]} 22... Nc3+ {[%clk 0:01:35.4]} 23. Kc1 {[%clk 0:01:32.8]}
23... Qxf4+ {[%clk 0:01:27.8]} 24. Rd2 {[%clk 0:01:30.3]} 24... Rac8 {[%clk
0:01:10.8]} 25. Bd3 {[%clk 0:01:26.6]} 25... Bb5 {[%clk 0:01:10.2]} 26. Bxb5
{[%clk 0:00:24]} 26... axb5 {[%clk 0:01:12.1]} 27. Qa3 {[%clk 0:00:25.3]} 27...
b4 {[%clk 0:01:03.6]} 28. Qa7 {[%clk 0:00:19.7]} 28... Ne4 {[%clk 0:00:45.6]}
29. Rd1 {[%clk 0:00:17.4]} 29... Rc3 {[%clk 0:00:36.9]} 30. Qd4 {[%clk
0:00:08.6]} 30... Qg5 {[%clk 0:00:25.6]} 31. Kb2 {[%clk 0:00:08.6]} 31... Nxd2
{[%clk 0:00:20.4]} 32. Rxd2 {[%clk 0:00:10.3]} 32... Rc4 {[%clk 0:00:21.3]} 33.
Qg1 {[%clk 0:00:09.3]} 33... Rfc8 {[%clk 0:00:20]} 34. Qd1 {[%clk 0:00:08.8]}
34... Qe5+ {[%clk 0:00:19.7]} 35. Kb1 {[%clk 0:00:09.7]} 35... Rc3 {[%clk
0:00:20.2]} 36. Ncd4 {[%clk 0:00:10.6]} 36... Re3 {[%clk 0:00:19.3]} 37. Rc2
{[%clk 0:00:11.1]} 37... Qe4 {[%clk 0:00:17.6]} 38. Kb2 {[%clk 0:00:11.2]} 38...
Rcc3 {[%clk 0:00:17.4]} 39. Rd2 {[%clk 0:00:11.4]} 39... Re1 {[%clk 0:00:16.9]}
40. Qh5 {[%clk 0:00:10.3]} 40... Rb1# {[%clk 0:00:15.1]} 0-1